[Event "Titled Tuesday Blitz August 22 Early 2023"]
[White "Swicarz, Maciej"]
[Black "Sun, Rick"]
[WhiteFideId "1113585"]
[BlackFideId "30909481"]
[WhiteElo "2465"]
[BlackElo "2612"]
[Result "1-0"]
[Round "7"]
[TimeControl "180+1"]
[Date "2023.08.22"]
[WhiteClock "0:00:02"]
[BlackClock "0:00:00"]
[Board "103"]

1. e4 {[%clk 0:03:00]}  d6 {[%clk 0:03:00]} 2. d4 {[%clk 0:03:00]}  Nf6 {[%clk 0:03:01]} 3. Nc3 {[%clk 0:02:59]}  Nbd7 {[%clk 0:03:01]} 4. Be3 {[%clk 0:02:54]}  e5 {[%clk 0:03:02]} 5. f3 {[%clk 0:02:51]}  Be7 {[%clk 0:03:02]} 6. Nge2 {[%clk 0:02:51]}  c6 {[%clk 0:03:02]} 7. Qd2 {[%clk 0:02:51]}  O-O {[%clk 0:03:02]} 8. O-O-O {[%clk 0:02:51]}  b5 {[%clk 0:03:02]} 9. Ng3 {[%clk 0:02:47]}  exd4 {[%clk 0:03:01]} 10. Bxd4 {[%clk 0:02:47]}  c5 {[%clk 0:03:01]} 11. Bxf6 {[%clk 0:02:46]}  Nxf6 {[%clk 0:02:55]} 12. Nxb5 {[%clk 0:02:43]}  Rb8 {[%clk 0:02:50]} 13. Nxd6 {[%clk 0:02:41]}  Be6 {[%clk 0:02:44]} 14. Ngf5 {[%clk 0:02:31]}  Bxd6 {[%clk 0:02:30]} 15. Nxd6 {[%clk 0:02:18]}  Bxa2 {[%clk 0:02:09]} 16. b3 {[%clk 0:02:02]}  Bxb3 {[%clk 0:01:44]} 17. cxb3 {[%clk 0:02:03]}  Rxb3 {[%clk 0:01:44]} 18. Bc4 {[%clk 0:02:02]}  Rb4 {[%clk 0:01:42]} 19. Ba2 {[%clk 0:01:42]}  Qa5 {[%clk 0:01:30]} 20. Nc4 {[%clk 0:01:19]}  Qa4 {[%clk 0:01:27]} 21. Qc2 {[%clk 0:01:19]}  Qa6 {[%clk 0:01:15]} 22. Rd3 {[%clk 0:01:17]}  Rfb8 {[%clk 0:01:11]} 23. Rhd1 {[%clk 0:01:04]}  g6 {[%clk 0:01:00]} 24. Rd8+ {[%clk 0:01:03]}  Rxd8 {[%clk 0:01:00]} 25. Rxd8+ {[%clk 0:01:04]}  Kg7 {[%clk 0:01:01]} 26. Rd3 {[%clk 0:01:02]}  Ra4 {[%clk 0:00:54]} 27. Bb3 {[%clk 0:00:57]}  Ra1+ {[%clk 0:00:54]} 28. Kd2 {[%clk 0:00:57]}  Rg1 {[%clk 0:00:50]} 29. Ne3 {[%clk 0:00:54]}  Qa1 {[%clk 0:00:47]} 30. Rd6 {[%clk 0:00:17]}  Qe1+ {[%clk 0:00:30]} 31. Kd3 {[%clk 0:00:17]}  Ne8 {[%clk 0:00:22]} 32. Rd7 {[%clk 0:00:15]}  Nf6 {[%clk 0:00:20]} 33. Rxf7+ {[%clk 0:00:14]}  Kh6 {[%clk 0:00:17]} 34. Rxf6 {[%clk 0:00:14]}  Qb4 {[%clk 0:00:16]} 35. Ke2 {[%clk 0:00:12]}  Qe1+ {[%clk 0:00:15]} 36. Kd3 {[%clk 0:00:12]}  Qb4 {[%clk 0:00:16]} 37. Bc4 {[%clk 0:00:11]}  Ra1 {[%clk 0:00:12]} 38. Ng4+ {[%clk 0:00:09]}  Kh5 {[%clk 0:00:12]} 39. Rf7 {[%clk 0:00:05]}  h6 {[%clk 0:00:05]} 40. Nf6+ {[%clk 0:00:06]}  Kh4 {[%clk 0:00:04]} 41. g3+ {[%clk 0:00:04]}  Kg5 {[%clk 0:00:03]} 42. Nh7+ {[%clk 0:00:04]}  Kh5 {[%clk 0:00:03]} 43. Ke3 {[%clk 0:00:02]}  Qe1+ {[%clk 0:00:01]} 44. Kf4 {[%clk 0:00:02]}  g5+ {[%clk 0:00:00]} 45. Kf5 {[%clk 0:00:02]} 1-0


[Site "https://www.chess.com"]

[Event "Titled Tuesday Blitz August 22 Early 2023"]
[White "Bodnaruk, Anastasia"]
[Black "Liu, Casper"]
[WhiteFideId "4181751"]
[BlackFideId "1454153"]
[WhiteElo "2607"]
[BlackElo "2458"]
[Result "1-0"]
[Round "7"]
[TimeControl "180+1"]
[Date "2023.08.22"]
[WhiteClock "0:00:38"]
[BlackClock "0:00:00"]
[Board "105"]

1. e4 {[%clk 0:03:00]}  c5 {[%clk 0:03:00]} 2. Nc3 {[%clk 0:02:59]}  g6 {[%clk 0:02:59]} 3. Nge2 {[%clk 0:02:57]}  Bg7 {[%clk 0:02:59]} 4. g3 {[%clk 0:02:58]}  d6 {[%clk 0:02:58]} 5. Bg2 {[%clk 0:02:58]}  h5 {[%clk 0:02:59]} 6. h4 {[%clk 0:02:51]}  Bg4 {[%clk 0:02:58]} 7. O-O {[%clk 0:02:48]}  Nc6 {[%clk 0:02:58]} 8. d3 {[%clk 0:02:47]}  Nf6 {[%clk 0:02:49]} 9. Be3 {[%clk 0:02:43]}  a6 {[%clk 0:02:49]} 10. f3 {[%clk 0:02:36]}  Be6 {[%clk 0:02:47]} 11. d4 {[%clk 0:02:33]}  cxd4 {[%clk 0:02:46]} 12. Nxd4 {[%clk 0:02:34]}  Bc4 {[%clk 0:02:35]} 13. Re1 {[%clk 0:02:33]}  O-O {[%clk 0:02:35]} 14. Qd2 {[%clk 0:02:31]}  Nd7 {[%clk 0:02:32]} 15. b3 {[%clk 0:02:18]}  Nxd4 {[%clk 0:02:21]} 16. Bxd4 {[%clk 0:02:19]}  Be6 {[%clk 0:02:19]} 17. Nd5 {[%clk 0:02:15]}  Rc8 {[%clk 0:01:37]} 18. c4 {[%clk 0:02:02]}  Ne5 {[%clk 0:01:25]} 19. Qc3 {[%clk 0:01:48]}  b5 {[%clk 0:00:10]} 20. f4 {[%clk 0:01:46]}  Bxd5 {[%clk 0:00:10]} 21. exd5 {[%clk 0:01:42]}  Nxc4 {[%clk 0:00:11]} 22. Bxg7 {[%clk 0:01:40]}  Na3 {[%clk 0:00:04]} 23. Qb2 {[%clk 0:01:40]}  Rc2 {[%clk 0:00:02]} 24. Qxa3 {[%clk 0:01:38]}  Qb6+ {[%clk 0:00:01]} 25. Kh2 {[%clk 0:01:26]}  Qf2 {[%clk 0:00:02]} 26. Rg1 {[%clk 0:01:26]}  Kxg7 {[%clk 0:00:03]} 27. Raf1 {[%clk 0:01:21]}  Qe2 {[%clk 0:00:03]} 28. b4 {[%clk 0:01:08]}  Rfc8 {[%clk 0:00:03]} 29. Qf3 {[%clk 0:01:07]}  Qd2 {[%clk 0:00:03]} 30. Rd1 {[%clk 0:01:04]}  Qxb4 {[%clk 0:00:03]} 31. f5 {[%clk 0:00:53]}  R8c3 {[%clk 0:00:03]} 32. Rd3 {[%clk 0:00:53]}  Rxd3 {[%clk 0:00:02]} 33. Qxd3 {[%clk 0:00:53]}  Qb2 {[%clk 0:00:03]} 34. fxg6 {[%clk 0:00:51]}  fxg6 {[%clk 0:00:04]} 35. Qe4 {[%clk 0:00:51]}  Re2 {[%clk 0:00:04]} 36. Qf3 {[%clk 0:00:41]}  Qxa2 {[%clk 0:00:05]} 37. Rf1 {[%clk 0:00:37]}  Qb2 {[%clk 0:00:02]} 38. Qf8+ {[%clk 0:00:37]}  Kh7 {[%clk 0:00:00]} 39. Rf7+ {[%clk 0:00:38]} 1-0


[Site "https://www.chess.com"]

[Event "Titled Tuesday Blitz August 22 Early 2023"]
[White "Erzhanov, Arman"]
[Black "Ljukin, Sergei"]
[WhiteFideId "4138821"]
[BlackFideId "14102200"]
[WhiteElo "2601"]
[BlackElo "2456"]
[Result "1-0"]
[Round "7"]
[TimeControl "180+1"]
[Date "2023.08.22"]
[WhiteClock "0:01:24"]
[BlackClock "0:00:06"]
[Board "106"]

1. e4 {[%clk 0:03:00]}  e6 {[%clk 0:02:51]} 2. b3 {[%clk 0:02:57]}  d5 {[%clk 0:02:50]} 3. Bb2 {[%clk 0:02:58]}  Nf6 {[%clk 0:02:51]} 4. e5 {[%clk 0:02:58]}  Nfd7 {[%clk 0:02:50]} 5. f4 {[%clk 0:02:58]}  c5 {[%clk 0:02:50]} 6. Qg4 {[%clk 0:02:57]}  Nc6 {[%clk 0:02:48]} 7. Nf3 {[%clk 0:02:57]}  g6 {[%clk 0:02:29]} 8. Be2 {[%clk 0:02:56]}  Bg7 {[%clk 0:02:27]} 9. Nc3 {[%clk 0:02:56]}  f5 {[%clk 0:02:09]} 10. Qg3 {[%clk 0:02:51]}  Nb4 {[%clk 0:02:06]} 11. O-O-O {[%clk 0:02:45]}  d4 {[%clk 0:02:05]} 12. Nb5 {[%clk 0:02:43]}  Nxa2+ {[%clk 0:02:02]} 13. Kb1 {[%clk 0:02:43]}  Nb4 {[%clk 0:02:02]} 14. Nd6+ {[%clk 0:02:43]}  Kf8 {[%clk 0:02:01]} 15. c3 {[%clk 0:02:39]}  dxc3 {[%clk 0:01:49]} 16. dxc3 {[%clk 0:02:39]}  Nd5 {[%clk 0:01:47]} 17. Ng5 {[%clk 0:02:32]}  Qe7 {[%clk 0:01:43]} 18. Bf3 {[%clk 0:02:03]}  N7b6 {[%clk 0:01:00]} 19. c4 {[%clk 0:02:02]}  Nb4 {[%clk 0:00:59]} 20. Qf2 {[%clk 0:01:29]}  Na6 {[%clk 0:00:53]} 21. Ba3 {[%clk 0:01:28]}  Nd7 {[%clk 0:00:33]} 22. Nxc8 {[%clk 0:01:26]}  Rxc8 {[%clk 0:00:27]} 23. Bxb7 {[%clk 0:01:26]}  Rb8 {[%clk 0:00:24]} 24. Bxa6 {[%clk 0:01:26]}  Rxb3+ {[%clk 0:00:23]} 25. Ka2 {[%clk 0:01:27]}  Rc3 {[%clk 0:00:06]} 26. Bb5 {[%clk 0:01:24]} 1-0


[Site "https://www.chess.com"]

[Event "Titled Tuesday Blitz August 22 Early 2023"]
[White "Aevengho"]
[Black "Arencibia Monduy, Antonio"]
[BlackFideId "3507939"]
[WhiteElo "2585"]
[BlackElo "2442"]
[Result "0-1"]
[Round "7"]
[TimeControl "180+1"]
[Date "2023.08.22"]
[WhiteClock "0:00:00"]
[BlackClock "0:00:13"]
[Board "107"]

1. e4 {[%clk 0:03:00]}  e6 {[%clk 0:02:58]} 2. Nc3 {[%clk 0:02:59]}  d5 {[%clk 0:02:58]} 3. d4 {[%clk 0:02:58]}  dxe4 {[%clk 0:02:58]} 4. Nxe4 {[%clk 0:02:58]}  Nd7 {[%clk 0:02:58]} 5. Nf3 {[%clk 0:02:57]}  Ngf6 {[%clk 0:02:59]} 6. Nxf6+ {[%clk 0:02:57]}  Nxf6 {[%clk 0:02:59]} 7. Bd3 {[%clk 0:02:58]}  Be7 {[%clk 0:02:59]} 8. Bg5 {[%clk 0:02:58]}  O-O {[%clk 0:02:59]} 9. Qe2 {[%clk 0:02:58]}  c5 {[%clk 0:02:58]} 10. dxc5 {[%clk 0:02:54]}  Qa5+ {[%clk 0:02:58]} 11. c3 {[%clk 0:02:51]}  Qxc5 {[%clk 0:02:58]} 12. O-O {[%clk 0:02:45]}  Bd7 {[%clk 0:02:57]} 13. Be3 {[%clk 0:02:43]}  Qc7 {[%clk 0:02:56]} 14. Bd4 {[%clk 0:02:38]}  Bc6 {[%clk 0:02:55]} 15. Ne5 {[%clk 0:02:36]}  Bd5 {[%clk 0:02:42]} 16. c4 {[%clk 0:02:26]}  Bc6 {[%clk 0:02:42]} 17. Nxc6 {[%clk 0:02:26]}  Qxc6 {[%clk 0:02:42]} 18. Rad1 {[%clk 0:02:22]}  a6 {[%clk 0:02:42]} 19. b3 {[%clk 0:02:18]}  Rac8 {[%clk 0:02:41]} 20. Rfe1 {[%clk 0:02:12]}  Rfd8 {[%clk 0:02:42]} 21. Bb2 {[%clk 0:02:12]}  Rd7 {[%clk 0:02:32]} 22. Bc2 {[%clk 0:02:05]}  Rcd8 {[%clk 0:02:31]} 23. g3 {[%clk 0:01:59]}  b5 {[%clk 0:02:19]} 24. cxb5 {[%clk 0:01:50]}  axb5 {[%clk 0:02:19]} 25. Rxd7 {[%clk 0:01:49]}  Rxd7 {[%clk 0:02:20]} 26. Rd1 {[%clk 0:01:49]}  Rxd1+ {[%clk 0:02:17]} 27. Qxd1 {[%clk 0:01:50]}  b4 {[%clk 0:02:15]} 28. Bd3 {[%clk 0:01:26]}  Nd5 {[%clk 0:01:59]} 29. Be4 {[%clk 0:01:12]}  Nc3 {[%clk 0:01:16]} 30. Bxc6 {[%clk 0:01:11]}  Nxd1 {[%clk 0:01:16]} 31. Bd4 {[%clk 0:01:08]}  Bf6 {[%clk 0:01:17]} 32. Bc5 {[%clk 0:01:06]}  Nc3 {[%clk 0:01:06]} 33. Bxb4 {[%clk 0:01:04]}  Nxa2 {[%clk 0:01:06]} 34. Bd6 {[%clk 0:00:53]}  Bc3 {[%clk 0:01:02]} 35. Kf1 {[%clk 0:00:49]}  Nb4 {[%clk 0:00:59]} 36. Bd7 {[%clk 0:00:36]}  g6 {[%clk 0:00:50]} 37. g4 {[%clk 0:00:28]}  h6 {[%clk 0:00:49]} 38. h4 {[%clk 0:00:28]}  Kg7 {[%clk 0:00:48]} 39. g5 {[%clk 0:00:25]}  hxg5 {[%clk 0:00:48]} 40. hxg5 {[%clk 0:00:26]}  f6 {[%clk 0:00:42]} 41. Bxe6 {[%clk 0:00:20]}  fxg5 {[%clk 0:00:42]} 42. Ke2 {[%clk 0:00:20]}  Kf6 {[%clk 0:00:42]} 43. Bc4 {[%clk 0:00:20]}  g4 {[%clk 0:00:37]} 44. Ke3 {[%clk 0:00:19]}  Kf5 {[%clk 0:00:34]} 45. Bd3+ {[%clk 0:00:17]}  Ke6 {[%clk 0:00:28]} 46. Bf8 {[%clk 0:00:09]}  Nd5+ {[%clk 0:00:28]} 47. Ke4 {[%clk 0:00:06]}  Nf6+ {[%clk 0:00:27]} 48. Kf4 {[%clk 0:00:06]}  Bd2+ {[%clk 0:00:27]} 49. Kg3 {[%clk 0:00:05]}  g5 {[%clk 0:00:23]} 50. b4 {[%clk 0:00:04]}  Bf4+ {[%clk 0:00:19]} 51. Kg2 {[%clk 0:00:03]}  Nd7 {[%clk 0:00:15]} 52. Be2 {[%clk 0:00:00]}  Nxf8 {[%clk 0:00:13]} 0-1


[Site "https://www.chess.com"]

[Event "Titled Tuesday Blitz August 22 Early 2023"]
[White "MateoReyes"]
[Black "Golubev, Mikhail"]
[BlackFideId "14100983"]
[WhiteElo "2435"]
[BlackElo "2570"]
[Result "0-1"]
[Round "7"]
[TimeControl "180+1"]
[Date "2023.08.22"]
[WhiteClock "0:00:52"]
[BlackClock "0:00:04"]
[Board "109"]

1. Nf3 {[%clk 0:03:00]}  g6 {[%clk 0:02:58]} 2. d4 {[%clk 0:03:00]}  Nf6 {[%clk 0:02:57]} 3. c4 {[%clk 0:02:59]}  Bg7 {[%clk 0:02:57]} 4. Nc3 {[%clk 0:02:59]}  O-O {[%clk 0:02:58]} 5. Bg5 {[%clk 0:02:59]}  c5 {[%clk 0:02:55]} 6. e3 {[%clk 0:02:58]}  cxd4 {[%clk 0:02:53]} 7. Nxd4 {[%clk 0:02:56]}  Qa5 {[%clk 0:02:51]} 8. Bh4 {[%clk 0:02:51]}  Ne4 {[%clk 0:02:37]} 9. Qb3 {[%clk 0:02:49]}  Nxc3 {[%clk 0:02:05]} 10. Qxc3 {[%clk 0:02:45]}  Qxc3+ {[%clk 0:02:03]} 11. bxc3 {[%clk 0:02:45]}  Nc6 {[%clk 0:02:04]} 12. Be2 {[%clk 0:02:39]}  h6 {[%clk 0:01:55]} 13. Rb1 {[%clk 0:02:37]}  g5 {[%clk 0:01:44]} 14. Bg3 {[%clk 0:02:36]}  f5 {[%clk 0:01:40]} 15. f4 {[%clk 0:02:32]}  gxf4 {[%clk 0:01:36]} 16. Nxc6 {[%clk 0:02:26]}  dxc6 {[%clk 0:01:26]} 17. Bxf4 {[%clk 0:02:25]}  Bxc3+ {[%clk 0:01:18]} 18. Kf2 {[%clk 0:02:25]}  Bg7 {[%clk 0:01:16]} 19. Rhd1 {[%clk 0:02:02]}  e5 {[%clk 0:01:04]} 20. Bg3 {[%clk 0:02:01]}  b6 {[%clk 0:00:30]} 21. Rd6 {[%clk 0:01:57]}  f4 {[%clk 0:00:26]} 22. exf4 {[%clk 0:01:54]}  exf4 {[%clk 0:00:25]} 23. Bh4 {[%clk 0:01:54]}  Bf5 {[%clk 0:00:23]} 24. Rbd1 {[%clk 0:01:50]}  c5 {[%clk 0:00:22]} 25. Bf3 {[%clk 0:01:45]}  Rae8 {[%clk 0:00:19]} 26. Rc6 {[%clk 0:01:36]}  Bd4+ {[%clk 0:00:15]} 27. Kf1 {[%clk 0:01:34]}  Re3 {[%clk 0:00:12]} 28. Bf2 {[%clk 0:01:33]}  Rd3 {[%clk 0:00:09]} 29. Rxd3 {[%clk 0:01:30]}  Bxd3+ {[%clk 0:00:09]} 30. Kg1 {[%clk 0:01:30]}  Bxf2+ {[%clk 0:00:09]} 31. Kxf2 {[%clk 0:01:30]}  Bxc4 {[%clk 0:00:10]} 32. Rxh6 {[%clk 0:01:27]}  Bxa2 {[%clk 0:00:09]} 33. Rc6 {[%clk 0:01:27]}  c4 {[%clk 0:00:08]} 34. h4 {[%clk 0:01:26]}  b5 {[%clk 0:00:08]} 35. h5 {[%clk 0:01:16]}  Rd8 {[%clk 0:00:07]} 36. h6 {[%clk 0:01:16]}  b4 {[%clk 0:00:06]} 37. Ra6 {[%clk 0:01:08]}  b3 {[%clk 0:00:05]} 38. Bg4 {[%clk 0:01:06]}  c3 {[%clk 0:00:04]} 39. Be6+ {[%clk 0:01:05]}  Kh8 {[%clk 0:00:04]} 40. Bf5 {[%clk 0:01:00]}  c2 {[%clk 0:00:03]} 41. Rxa7 {[%clk 0:01:00]}  c1=Q {[%clk 0:00:03]} 42. Rh7+ {[%clk 0:00:59]}  Kg8 {[%clk 0:00:04]} 43. Rg7+ {[%clk 0:00:58]}  Kf8 {[%clk 0:00:04]} 44. Be6 {[%clk 0:00:53]}  Qe3+ {[%clk 0:00:03]} 45. Kf1 {[%clk 0:00:52]}  Rd1# {[%clk 0:00:04]} 0-1


[Site "https://www.chess.com"]

[Event "Titled Tuesday Blitz August 22 Early 2023"]
[White "Eynullayev, Altay"]
[Black "Namitbir Singh Walia"]
[WhiteFideId "13413562"]
[BlackFideId "35071068"]
[WhiteElo "2564"]
[BlackElo "2434"]
[Result "1-0"]
[Round "7"]
[TimeControl "180+1"]
[Date "2023.08.22"]
[WhiteClock "0:02:02"]
[BlackClock "0:01:07"]
[Board "110"]

1. d4 {[%clk 0:03:00]}  Nf6 {[%clk 0:02:58]} 2. Bf4 {[%clk 0:02:59]}  d5 {[%clk 0:02:56]} 3. e3 {[%clk 0:03:00]}  c5 {[%clk 0:02:57]} 4. Nf3 {[%clk 0:03:00]}  Nc6 {[%clk 0:02:57]} 5. Nbd2 {[%clk 0:03:01]}  Qb6 {[%clk 0:02:57]} 6. dxc5 {[%clk 0:03:00]}  Qxb2 {[%clk 0:02:48]} 7. Rb1 {[%clk 0:02:52]}  Qc3 {[%clk 0:02:46]} 8. Bb5 {[%clk 0:02:52]}  Qxc5 {[%clk 0:02:43]} 9. O-O {[%clk 0:02:42]}  Bd7 {[%clk 0:02:31]} 10. c4 {[%clk 0:02:38]}  e6 {[%clk 0:02:26]} 11. Nb3 {[%clk 0:02:37]}  Qa3 {[%clk 0:02:24]} 12. Nbd4 {[%clk 0:02:29]}  Nxd4 {[%clk 0:02:20]} 13. Qxd4 {[%clk 0:02:20]}  Bc5 {[%clk 0:01:46]} 14. Bxd7+ {[%clk 0:02:19]}  Nxd7 {[%clk 0:01:38]} 15. Qxg7 {[%clk 0:02:19]}  O-O-O {[%clk 0:01:21]} 16. cxd5 {[%clk 0:02:20]}  exd5 {[%clk 0:01:17]} 17. Qxf7 {[%clk 0:02:14]}  Qxa2 {[%clk 0:01:15]} 18. Rfc1 {[%clk 0:02:07]}  b6 {[%clk 0:01:12]} 19. Rxc5+ {[%clk 0:02:01]}  bxc5 {[%clk 0:01:11]} 20. Rb8+ {[%clk 0:02:01]}  Nxb8 {[%clk 0:01:07]} 21. Qc7# {[%clk 0:02:02]} 1-0


[Site "https://www.chess.com"]

[Event "Titled Tuesday Blitz August 22 Early 2023"]
[White "Llanos, Guillermo"]
[Black "Ganiev, Roman"]
[WhiteFideId "100358"]
[BlackFideId "4131452"]
[WhiteElo "2434"]
[BlackElo "2564"]
[Result "0-1"]
[Round "7"]
[TimeControl "180+1"]
[Date "2023.08.22"]
[WhiteClock "0:00:56"]
[BlackClock "0:00:09"]
[Board "111"]

1. c4 {[%clk 0:03:00]}  e5 {[%clk 0:02:38]} 2. Nc3 {[%clk 0:03:00]}  Nf6 {[%clk 0:02:34]} 3. Nf3 {[%clk 0:03:00]}  Nc6 {[%clk 0:02:35]} 4. e4 {[%clk 0:02:59]}  Bc5 {[%clk 0:02:34]} 5. Nxe5 {[%clk 0:02:59]}  Nxe5 {[%clk 0:02:32]} 6. d4 {[%clk 0:02:59]}  Bd6 {[%clk 0:02:33]} 7. c5 {[%clk 0:02:58]}  Bxc5 {[%clk 0:02:30]} 8. dxe5 {[%clk 0:02:57]}  Ng8 {[%clk 0:02:22]} 9. Bc4 {[%clk 0:02:53]}  Ne7 {[%clk 0:02:19]} 10. O-O {[%clk 0:02:42]}  O-O {[%clk 0:02:18]} 11. Na4 {[%clk 0:02:18]}  Bb6 {[%clk 0:02:08]} 12. Nxb6 {[%clk 0:02:16]}  axb6 {[%clk 0:02:09]} 13. Bf4 {[%clk 0:02:12]}  Nc6 {[%clk 0:02:07]} 14. Bg3 {[%clk 0:02:11]}  Qe7 {[%clk 0:02:06]} 15. f4 {[%clk 0:02:10]}  Qc5+ {[%clk 0:02:06]} 16. Kh1 {[%clk 0:02:08]}  Qxc4 {[%clk 0:02:06]} 17. f5 {[%clk 0:02:06]}  Qxe4 {[%clk 0:02:03]} 18. Qh5 {[%clk 0:02:05]}  d6 {[%clk 0:00:48]} 19. Rf4 {[%clk 0:01:59]}  Qd3 {[%clk 0:00:42]} 20. Rd1 {[%clk 0:01:54]}  Qc2 {[%clk 0:00:38]} 21. Rdf1 {[%clk 0:01:42]}  Nxe5 {[%clk 0:00:29]} 22. Rh4 {[%clk 0:01:41]}  h6 {[%clk 0:00:29]} 23. Bxe5 {[%clk 0:01:34]}  dxe5 {[%clk 0:00:28]} 24. Rg4 {[%clk 0:01:34]}  Bxf5 {[%clk 0:00:14]} 25. Qxf5 {[%clk 0:01:29]}  Qxf5 {[%clk 0:00:14]} 26. Rxf5 {[%clk 0:01:29]}  Rxa2 {[%clk 0:00:14]} 27. h4 {[%clk 0:01:29]}  Rxb2 {[%clk 0:00:13]} 28. Rxe5 {[%clk 0:01:29]}  Rb1+ {[%clk 0:00:11]} 29. Kh2 {[%clk 0:01:28]}  Rc1 {[%clk 0:00:11]} 30. Re7 {[%clk 0:01:24]}  Rc5 {[%clk 0:00:09]} 31. Rd4 {[%clk 0:01:23]}  b5 {[%clk 0:00:09]} 32. Rdd7 {[%clk 0:01:23]}  b4 {[%clk 0:00:06]} 33. Rxc7 {[%clk 0:01:23]}  Rxc7 {[%clk 0:00:03]} 34. Rxc7 {[%clk 0:01:23]}  b5 {[%clk 0:00:02]} 35. Rb7 {[%clk 0:01:23]}  Rc8 {[%clk 0:00:02]} 36. Rxb5 {[%clk 0:01:22]}  Rc4 {[%clk 0:00:03]} 37. Rb8+ {[%clk 0:01:21]}  Kh7 {[%clk 0:00:03]} 38. h5 {[%clk 0:01:22]}  g6 {[%clk 0:00:02]} 39. Rb7 {[%clk 0:01:20]}  Kg7 {[%clk 0:00:02]} 40. hxg6 {[%clk 0:01:19]}  Kxg6 {[%clk 0:00:03]} 41. Rb5 {[%clk 0:01:18]}  f6 {[%clk 0:00:04]} 42. g3 {[%clk 0:01:18]}  h5 {[%clk 0:00:04]} 43. Kg2 {[%clk 0:01:18]}  Rd4 {[%clk 0:00:05]} 44. Kf3 {[%clk 0:01:18]}  Rc4 {[%clk 0:00:05]} 45. Ke3 {[%clk 0:01:17]}  Rc3+ {[%clk 0:00:06]} 46. Kf4 {[%clk 0:01:17]}  b3 {[%clk 0:00:06]} 47. Rb6 {[%clk 0:01:16]}  Kf7 {[%clk 0:00:06]} 48. Rb7+ {[%clk 0:01:10]}  Ke6 {[%clk 0:00:06]} 49. Rb6+ {[%clk 0:01:10]}  Kd5 {[%clk 0:00:07]} 50. Rxf6 {[%clk 0:01:09]}  b2 {[%clk 0:00:06]} 51. Rb6 {[%clk 0:01:09]}  Rc2 {[%clk 0:00:07]} 52. Ke3 {[%clk 0:01:08]}  Kc4 {[%clk 0:00:06]} 53. Rc6+ {[%clk 0:01:06]}  Kb3 {[%clk 0:00:06]} 54. Rb6+ {[%clk 0:01:06]}  Ka2 {[%clk 0:00:06]} 55. Ra6+ {[%clk 0:01:06]}  Kb1 {[%clk 0:00:06]} 56. Kf4 {[%clk 0:01:01]}  Kc1 {[%clk 0:00:06]} 57. Rb6 {[%clk 0:01:01]}  b1=Q {[%clk 0:00:06]} 58. Rxb1+ {[%clk 0:01:01]}  Kxb1 {[%clk 0:00:07]} 59. Kg5 {[%clk 0:01:01]}  Rc5+ {[%clk 0:00:07]} 60. Kh4 {[%clk 0:01:01]}  Kc2 {[%clk 0:00:08]} 61. g4 {[%clk 0:00:56]}  hxg4 {[%clk 0:00:09]} 0-1


[Site "https://www.chess.com"]

[Event "Titled Tuesday Blitz August 22 Early 2023"]
[White "Willy, Stephen"]
[Black "Vivas Zamora, Fabian Ernesto"]
[WhiteFideId "30981468"]
[BlackFideId "3902480"]
[WhiteElo "2551"]
[BlackElo "2429"]
[Result "1-0"]
[Round "7"]
[TimeControl "180+1"]
[Date "2023.08.22"]
[WhiteClock "0:01:16"]
[BlackClock "0:00:00"]
[Board "113"]

1. e4 {[%clk 0:02:40]}  c5 {[%clk 0:02:59]} 2. c3 {[%clk 0:02:40]}  Nf6 {[%clk 0:02:56]} 3. e5 {[%clk 0:02:40]}  Nd5 {[%clk 0:02:56]} 4. Nf3 {[%clk 0:02:39]}  d6 {[%clk 0:02:54]} 5. Bc4 {[%clk 0:02:38]}  Nb6 {[%clk 0:02:25]} 6. Bb3 {[%clk 0:02:31]}  c4 {[%clk 0:02:23]} 7. Bc2 {[%clk 0:02:25]}  Nc6 {[%clk 0:02:23]} 8. exd6 {[%clk 0:02:15]}  e5 {[%clk 0:02:16]} 9. a4 {[%clk 0:02:11]}  Bxd6 {[%clk 0:02:11]} 10. a5 {[%clk 0:02:11]}  Nd5 {[%clk 0:02:10]} 11. d4 {[%clk 0:02:11]}  exd4 {[%clk 0:01:39]} 12. Nxd4 {[%clk 0:02:05]}  Qe7+ {[%clk 0:01:34]} 13. Ne2 {[%clk 0:02:03]}  Bg4 {[%clk 0:01:21]} 14. f3 {[%clk 0:02:02]}  O-O-O {[%clk 0:00:47]} 15. fxg4 {[%clk 0:01:54]}  Rhe8 {[%clk 0:00:35]} 16. O-O {[%clk 0:01:35]}  Bc5+ {[%clk 0:00:20]} 17. Nd4 {[%clk 0:01:30]}  Ne3 {[%clk 0:00:07]} 18. Bxe3 {[%clk 0:01:22]}  Qxe3+ {[%clk 0:00:08]} 19. Kh1 {[%clk 0:01:22]}  Bxd4 {[%clk 0:00:07]} 20. cxd4 {[%clk 0:01:21]}  Nxd4 {[%clk 0:00:08]} 21. Nc3 {[%clk 0:01:20]}  Qe5 {[%clk 0:00:00]} 22. Qc1 {[%clk 0:01:16]} 1-0


[Site "https://www.chess.com"]